Cogmind - Beta 14 X2 @@@ ROGUE MODE // 2024.08.03 @ 17:32:00 Player: Some Pennies Result: Destroyed self via exploding Nuclear Reactor Performance ------------- Evolutions (2) 1000 Regions Visited (9) 1800 Robots Destroyed (253) 1265 Value Destroyed (7143) 7143 Prototype IDs (17) 340 Alien Tech Used (0) 0 Bonus (1804) 1804 TOTAL SCORE: 13352 Bonus ------- High Alert Combat Kills 1382 Follower Combat Kills 247 Entered Garrisons 200 Friendly Fire -25 Cogmind --------- Core Integrity 0/550 Matter 139/300 Energy 200/290 System Corruption 0% Temperature Cool (0) Movement Treading (560) Ox5 Location -8/Materials Parts ------- > --- POWER (1) -------- Improved Deuterium Engine > --- PROPULSION (4) --- Light Treads Light Treads Armored Treads Flight Unit > --- UTILITY (4) ------ Cooling System Improved Cooling System Huge Storage Unit Improved Light Armor Plating > --- WEAPON (2) ------- Assault Cannon Proton Missile Launcher > --- INVENTORY (25) --- Improved Deuterium Engine Cesium-ion Thruster Cesium-ion Thruster Cesium-ion Thruster Cooling System Medium Storage Unit Improved Signal Interpreter Seismic Detector Launcher Guidance Computer ECM Suite Light Armor Plating Light Armor Plating Graphene Brace Hacking Suite Hacking Suite Hacking Suite Component Analysis Suite Heavy Particle Cannon Assault Cannon Assault Cannon Missile Launcher Improved Datajack Plasma Cutter Heavy Flail Signal Generator Peak State ------------ > --- POWER ------------ Reinforced Deuterium Engine > --- PROPULSION ------- Light Treads Armored Treads Armored Treads Advanced Treads > --- UTILITY ---------- Huge Storage Unit Armor Integrity Analyzer Improved Light Armor Plating Graphene Brace > --- WEAPON ----------- Gauss Rifle Gauss Rifle > --- INVENTORY -------- Heavy Ion Engine Improved Deuterium Engine Advanced Treads Medium Storage Unit High-capacity Battery Improved Signal Interpreter Seismic Detector Improved Targeting Computer Launcher Guidance Computer ECM Suite Improved Light Armor Plating Hacking Suite Hacking Suite Component Analysis Suite Gatling Laser Advanced Beam Cannon Heavy Assault Cannon Proton Missile Launcher Missile Launcher Missile Launcher Improved Datajack Plasma Cutter Axe Signal Generator [Rating: 44] Favorites ----------- Power Improved Ion Engine Engine Improved Ion Engine Power Core Light Nuclear Core Propulsion Light Treads Treads Light Treads Leg Improved Titanium Leg Wheel Compact Wheel Flight Unit Flight Unit Utility Huge Storage Unit Device Cooling System Storage Huge Storage Unit Processor Armor Integrity Analyzer Protection Improved Light Armor Plating Weapon Advanced Beam Cannon Energy Gun Gatling Laser Energy Cannon Advanced Beam Cannon Ballistic Gun Assault Rifle Ballistic Cannon Assault Cannon Launcher Missile Launcher Special Weapon Plasma Cutter Impact Weapon Heavy Flail Special Melee Weapon Datajack Build | -11 -10 -10 -9 -9 -9 -8 -8 -8 -8 ------- Run | Yrd Mat Min Mat Min Exi Min Mat Gar Mat Slots Evolved 4 | . . . 2 . . . 2 . . Power . | . . . . . . . . . . Propulsion 2 | . . . 1 . . . 1 . . Utility 2 | . . . 1 . . . 1 . . Weapon . | . . . . . . . . . . Parts Attached 188 | 7 15 3 47 7 1 9 52 31 16 Power 17 | 1 2 . 5 . . 1 6 2 . Engine 16 | 1 2 . 5 . . . 6 2 . Core 1 | . . . . . . 1 . . . Reactor . | . . . . . . . . . . Propulsion 63 | 2 2 3 19 3 . 3 17 6 8 Treads 55 | 1 2 2 19 2 . . 16 6 7 Leg 6 | . . 1 . 1 . 3 1 . . Wheel 1 | 1 . . . . . . . . . Hover . | . . . . . . . . . . Flight 1 | . . . . . . . . . 1 Utility 44 | 2 4 . 11 1 . 1 13 10 2 Device 18 | 1 1 . 4 . . . 6 5 1 Storage 4 | 1 1 . . 1 . . 1 . . Processor 5 | . 1 . . . . 1 3 . . Hackware . | . . . . . . . . . . Protection 17 | . 1 . 7 . . . 3 5 1 Artifact . | . . . . . . . . . . Weapon 64 | 2 7 . 12 3 1 4 16 13 6 Energy Gun 5 | . . . 1 . . . 2 2 . Energy Cannon 16 | . 1 . 5 1 . 1 4 2 2 Ballistic Gun 15 | 2 4 . 5 . . . 3 1 . Ballistic Cannon 15 | . 1 . . 1 . 2 5 4 2 Launcher 8 | . . . 1 1 . 1 1 2 2 Special Weapon 2 | . 1 . . . . . . 1 . Impact Weapon 1 | . . . . . . . . 1 . Slashing Weapon . | . . . . . . . . . . Piercing Weapon . | . . . . . . . . . . Special Melee Weapon 2 | . . . . . 1 . 1 . . Unidentified Prototypes 3 | . 1 . 2 . . . . . . Parts Lost 22 | . 2 1 3 2 . 2 4 6 2 Power 2 | . . . 1 . . . . 1 . Propulsion 11 | . . 1 . 2 . 1 1 4 2 Utility 6 | . 1 . 1 . . 1 2 1 . Weapon 3 | . 1 . 1 . . . 1 . . Highest Loss Streak 2 | . 1 1 1 2 . 1 1 2 2 To Critical Strikes . | . . . . . . . . . . Average Slot Usage (%) 98 | . 99 99 99 99 88 99 97 95 99 Engine 9 | . 14 14 11 11 11 2 7 8 9 Treads 29 | . 25 27 32 25 22 8 33 34 35 Leg 3 | . . . . 7 11 24 2 . . Device 7 | . 4 . 4 11 11 2 10 8 10 Storage 10 | . 14 14 11 11 11 11 9 9 9 Processor 5 | . 7 14 1 . . 8 8 9 5 Protection 9 | . 1 . 16 11 11 11 7 8 11 Energy Cannon 7 | . 4 14 9 14 . 4 10 2 10 Ballistic Gun 6 | . 21 14 11 . . . 2 1 . Ballistic Cannon 4 | . 1 . . 7 . 17 3 8 7 Naked Turns . | . . . . . . . . . . Heaviest Build 111 | 15 52 51 70 99 93 99 111 111 111 Greatest Support 84 | 20 40 40 63 60 40 48 84 84 80 Greatest Overweight (x) 5 | . 1 2 1 2 2 4 2 1 5 Average Overweight (x) . | . . 1 . 1 2 1 1 1 1 Largest Inventory Capacity 25 | 8 20 20 20 25 25 25 25 25 25 Average Capacity 22 | 7 17 20 20 23 25 25 25 25 25 Most Carried 25 | 5 16 19 20 23 25 25 25 25 25 Average Carried 21 | 2 11 18 19 20 24 24 24 24 24 Final Capacity 25 | 8 20 20 20 25 25 25 25 25 25 Final Carried 25 | 5 16 19 20 23 25 25 25 25 25 Class Distribution -------------------- 52% | Scavenger-Mutant 47% | Mutant Dominant Class ---------------- Mutant | -10/Materials Mutant | -10/Mines Mutant | -9/Materials Mutant | -9/Mines Mutant | -9/Exiles Scavenger-Mutant | -8/Mines Scavenger-Mutant | -8/Materials Scavenger-Mutant | -8/Garrison Scavenger-Mutant | -8/Materials Resources | -11 -10 -10 -9 -9 -9 -8 -8 -8 -8 ----------- Run | Yrd Mat Min Mat Min Exi Min Mat Gar Mat Matter Collected 4873 | 316 578 66 1234 177 . 429 970 770 333 Remotely . | . . . . . . . . . . Salvage Created 9279 | 97 886 239 2872 215 . 431 2497 1003 1039 Parts 513 | 11 44 14 152 18 . 20 148 57 49 Haulers Intercepted 13 | . 2 . 5 . . . 5 . 1 Recyclers Shooed 11 | . 1 . 6 2 . . 2 . . Parts Field Recycled . | . . . . . . . . . . Retrieved Matter . | . . . . . . . . . . Parts Self-Destructed . | . . . . . . . . . . Prevented . | . . . . . . . . . . Kills | -11 -10 -10 -9 -9 -9 -8 -8 -8 -8 ------- Run | Yrd Mat Min Mat Min Exi Min Mat Gar Mat Combat Hostiles Destroyed 191 | . 20 6 50 9 . 10 43 32 21 Guns 59 | . 14 1 25 . . . 12 7 . Cannons 96 | . 6 5 20 1 . 8 26 15 15 AOE 34 | . . . 5 8 . 2 4 9 6 Classes Destroyed 19 | 2 6 1 5 1 . 1 2 1 . Worker 3 | . 1 . 1 . . . 1 . . Builder 4 | . . . . 1 . 1 1 . 1 Tunneler 5 | 2 . . . 1 . 1 1 . . Hauler 13 | . 2 . 5 . . . 5 . 1 Recycler 21 | 1 1 . 9 1 . . 6 . 3 Mechanic 6 | . . . 1 1 . . 2 . 2 Operator 6 | . 1 . 2 . . . 1 . 2 Watcher 10 | . 1 . 4 . . . 4 . 1 Swarmer 48 | . 5 3 7 4 . 3 15 7 4 Cutter 3 | . . . . . . . . 3 . Grunt 94 | . 15 2 28 5 . 4 16 11 13 Brawler 4 | . . . 3 . . . . . 1 Duelist 6 | . . . 2 . . 1 . 1 2 Protector 1 | . . . 1 . . . . . . Sentry 24 | . . . 9 . . . 7 7 1 Specialist 5 | . . . . . . . 2 3 . Hunter 4 | . . . . . . 2 2 . . Heavy 1 | . . . . . . . 1 . . Assembled 1 | . . 1 . . . . . . . Best Kill Streak 13 | 2 4 3 9 11 . 3 6 13 6 Combat Bots Only 13 | . 3 3 8 8 . 2 6 13 6 Max Kills in Single Turn 4 | 1 1 2 2 2 . 1 2 2 4 Gunslinging . | . . . . . . . . . . Exploded 3 | . . . 2 2 . 1 2 2 3 Melee . | . . . . . . . . . . Uniques/NPCs Destroyed . | . . . . . . . . . . Combat | -11 -10 -10 -9 -9 -9 -8 -8 -8 -8 -------- Run | Yrd Mat Min Mat Min Exi Min Mat Gar Mat Hostile Shots Fired 849 | . 111 11 188 20 . 56 156 192 115 Missed 228 | . 30 2 52 4 . 18 43 43 36 Damage Taken 9184 | . 888 99 1993 263 . 555 1763 2346 1277 Core 1012 | . 160 22 144 55 . 62 98 288 183 Absorbed by Shields . | . . . . . . . . . . Ignored by Resistances 76 | . . . . . . . . . 76 Regen/Repaired (Parts) 984 | . 132 . 31 . . . 570 . 251 Core Remaining (%) 53 | 100 . 27 . . . 34 . . . Volleys Fired 601 | 11 84 16 174 10 . 29 129 81 67 Largest 2 | 2 2 2 2 2 . 2 2 2 2 Hottest 150 | 40 100 88 136 136 . 103 136 148 150 Shots Fired 1119 | 22 166 28 345 16 . 55 235 122 130 Gun 452 | 22 124 12 194 . . . 55 45 . Cannon 635 | . 41 16 145 10 . 52 177 69 125 Launcher 31 | . . . 6 6 . 3 3 8 5 Special 1 | . 1 . . . . . . . . Kinetic 610 | 22 136 12 194 . . 33 97 59 57 Thermal 478 | . 30 16 145 10 . 19 135 55 68 Explosive 24 | . . . 6 6 . . . 8 4 Electromagnetic 7 | . . . . . . 3 3 . 1 Robot Hit Streak 35 | 5 20 9 14 5 . 8 16 35 12 Robot Miss Streak 8 | 2 7 2 8 1 . 5 4 3 6 Penetration Max 1 | . . . . . . . 1 . . Secondary Targets 2 | . 1 . . . . . 1 . . Max Gunslinging Chain 1 | . 1 . . . . . 1 . . Shots Hit Robots 708 | 15 110 11 219 9 2 35 160 73 74 Core Hits 359 | 4 36 8 92 15 . 19 92 48 45 Critical Kills 5 | . . . 2 . . . 2 . 1 Critical Parts Destroyed . | . . . . . . . . . . Critical Strikes 16 | . . . 2 . . 1 6 5 2 Burn 1 | . . . . . . . . 1 . Meltdown 4 | . . . 2 . . . 1 . 1 Destroy 1 | . . . . . . . 1 . . Blast 10 | . . . . . . 1 4 4 1 Melee Attacks 5 | . . . . . 2 . 1 2 . Impact 2 | . . . . . . . . 2 . Slashing . | . . . . . . . . . . Piercing . | . . . . . . . . . . Sneak Attacks 2 | . . . . . 2 . . . . Combat Hostiles . | . . . . . . . . . . Follow-up Attacks . | . . . . . . . . . . Damage Inflicted 18296 | 183 1747 234 4521 873 . 876 3938 3090 2834 Guns 5070 | 183 1074 24 2077 . . . 848 864 . Cannons 9815 | . 673 210 1825 105 . 610 2926 1546 1920 Explosions 3397 | . . . 619 761 . 266 162 680 909 Melee . | . . . . . . . . . . Ramming 14 | . . . . 7 . . 2 . 5 Kinetic 7978 | 183 1232 24 2077 . . 346 1692 1437 987 Thermal 6973 | . 515 210 1825 105 . 330 2082 973 933 Explosive 2903 | . . . 619 761 . . . 680 843 Electromagnetic 428 | . . . . . . 200 162 . 66 Impact . | . . . . . . . . . . Slashing . | . . . . . . . . . . Piercing . | . . . . . . . . . . Highest Corruption 5 | . . . 5 5 5 5 . . . Average Corruption 4 | . . . 4 5 5 5 . . . Corruption Purged . | . . . . . . . . . . Corruption Blocked . | . . . . . . . . . . Effects 160 | . . . 73 33 27 27 . . . Message Errors 28 | . . . 13 5 5 5 . . . Matter Fused 37 | . . . 13 7 10 7 . . . Heat Flow Errors 33 | . . . 15 5 6 7 . . . Energy Discharges 14 | . . . 6 5 1 2 . . . Parts Rejected 3 | . . . 3 . . . . . . Parts Fused 3 | . . . . 3 . . . . . Data Loss (minor) 19 | . . . 10 4 4 1 . . . Data Loss (major) 3 | . . . 1 . . 2 . . . Misfires 11 | . . . 7 2 . 2 . . . Alerts 5 | . . . 1 2 1 1 . . . Weapon Failures 4 | . . . 4 . . . . . . Overload Shots . | . . . . . . . . . . Overflow Damage 243 | . 11 12 28 37 . . 26 64 65 Projectiles 191 | . 11 12 21 19 . . 25 38 65 Explosions 52 | . . . 7 18 . . 1 26 . Melee . | . . . . . . . . . . Knockbacks 30 | . 3 . . . . 1 4 8 14 Impact . | . . . . . . . . . . Kinetic 27 | . 3 . . . . 1 4 8 11 Secondary 3 | . . . . . . . . . 3 Self-Inflicted Damage 511 | . . . 88 120 . 20 . 124 159 Shots 18 | . . . 3 4 . 3 . 5 3 Rammed 4 | . . . . 2 . . 1 . 1 Targets Rammed 5 | . . . . 3 . . 1 . 1 Kicked . | . . . . . . . . . . Crushed 1 | . . . . 1 . . . . . Highest Temperature 449 | . 246 63 446 164 249 449 230 449 165 Average Temperature 72 | . 59 22 70 50 98 145 33 137 34 Received Heat Transfer 3261 | . 390 30 657 42 . 198 423 873 648 Effects 8 | . . . 2 . . 4 . 2 . Shutdowns 4 | . . . 2 . . 1 . 1 . Energy Bleed 1 | . . . . . . . . 1 . Matter Decay 1 | . . . . . . 1 . . . Damage (minor) 2 | . . . . . . 2 . . . Siege Activations . | . . . . . . . . . . Robots Corrupted . | . . . . . . . . . . Combat Hostiles . | . . . . . . . . . . Parts Fried 2 | . . . . . . . 2 . . Impact Corruptions . | . . . . . . . . . . Robots Melted 5 | . . . 2 . . . 1 1 1 Combat Hostiles 2 | . . . . . . . 1 1 . Parts Melted 33 | . 3 1 6 . . . 12 10 1 Heat Transferred 12262 | . 851 370 3145 185 . 581 3766 1995 1369 Parts Sabotaged . | . . . . . . . . . . Parts Stolen . | . . . . . . . . . . Parts Stripped . | . . . . . . . . . . Power Chain Reactions 2 | . . . . . . 1 1 . . Alert | -11 -10 -10 -9 -9 -9 -8 -8 -8 -8 ------- Run | Yrd Mat Min Mat Min Exi Min Mat Gar Mat Peak Influence 2031 | 15 243 220 819 595 . 173 810 2031 1155 Initial 989 | . 9 75 13 319 . . 35 509 989 Average 453 | 4 104 97 226 353 . 49 303 1260 980 Maximum Alert Level 5 | . 1 1 3 2 . . 3 5 4 Low Security (%) 44 | 100 84 90 58 15 . 100 40 . . Level 1 20 | . 15 9 26 51 . . 37 . . Level 2 8 | . . . 10 33 . . 11 5 . Level 3 16 | . . . 3 . . . 9 34 90 Level 4 6 | . . . . . . . . 36 9 Level 5 4 | . . . . . . . . 23 . High Security . | . . . . . . . . . . Max Security . | . . . . . . . . . . Sterilizations 1 | . . . 1 . . . . . . Squads Dispatched 33 | . 6 . 8 3 . . 10 . 6 Investigation 15 | . 5 . 3 2 . . 4 . 1 Extermination . | . . . . . . . . . . Reinforcement 11 | . 1 . 3 . . . 4 . 3 Assault 5 | . . . 2 1 . . . . 2 Garrison 2 | . . . . . . . 2 . . Intercept . | . . . . . . . . . . Searches Triggered . | . . . . . . . . . . Construction Impeded 1 | . . . . . . . 1 . . Haulers Reinforced . | . . . . . . . . . . Active Scanning Responses . | . . . . . . . . . . Cargo Convoy Interrupts . | . . . . . . . . . . Stealth | -11 -10 -10 -9 -9 -9 -8 -8 -8 -8 --------- Run | Yrd Mat Min Mat Min Exi Min Mat Gar Mat Distress Signals 15 | . 2 . 2 . . . 7 . 4 Communications Jammed . | . . . . . . . . . . Distress Signals . | . . . . . . . . . . Times Spotted 275 | . 36 6 74 11 . 12 67 31 38 Peak Tracking Total 7 | . 4 2 6 7 . 3 6 7 7 Tactical Retreats 8 | . 1 2 . . . 1 4 . . Traps | -11 -10 -10 -9 -9 -9 -8 -8 -8 -8 ------- Run | Yrd Mat Min Mat Min Exi Min Mat Gar Mat Traps Triggered 15 | . . . 6 . . . 1 7 1 Indirectly . | . . . . . . . . . . Trap Hack Attempts 21 | . . . . . . . 21 . . Triggered 1 | . . . . . . . 1 . . Disarmed . | . . . . . . . . . . Reprogrammed . | . . . . . . . . . . Reused . | . . . . . . . . . . Traps Extracted . | . . . . . . . . . . Installed . | . . . . . . . . . . Triggered 1 | . . 1 . . . . . . . Machines | -11 -10 -10 -9 -9 -9 -8 -8 -8 -8 ---------- Run | Yrd Mat Min Mat Min Exi Min Mat Gar Mat Machines Disabled 15 | . . . 1 1 . . 2 5 6 Max in Single Turn 2 | . . . 1 1 . . 1 2 2 Machines Repaired . | . . . . . . . . . . Machines Dismantled 1 | . . . . . . . . 1 . Machines Sabotaged . | . . . . . . . . . . Overloaded Fab Kills . | . . . . . . . . . . Hacking | -11 -10 -10 -9 -9 -9 -8 -8 -8 -8 --------- Run | Yrd Mat Min Mat Min Exi Min Mat Gar Mat Machines Accessed 41 | . 10 . 13 2 1 1 10 1 3 Terminals 27 | . 7 . 9 1 . 1 6 1 2 Fabricators . | . . . . . . . . . . Repair Stations 5 | . 1 . 1 . . . 2 . 1 Recycling Units 5 | . 2 . 2 . . . 1 . . Scanalyzers 1 | . . . 1 . . . . . . Garrison Access 1 | . . . . . . . 1 . . Total Hacks 124 | . 29 . 44 3 4 2 28 2 12 Successful 77 | . 14 . 27 3 4 . 19 1 9 Failed 47 | . 15 . 17 . . 2 9 1 3 Catastrophic 6 | . 1 . 1 . . . 2 1 1 Database Lockouts . | . . . . . . . . . . Manual 58 | . 13 . 18 1 . . 17 . 9 Terminals 83 | . 21 . 29 2 . 2 17 2 10 Fabricators . | . . . . . . . . . . Repair Stations 16 | . 3 . 3 . . . 8 . 2 Recycling Units 15 | . 5 . 8 . . . 2 . . Scanalyzers 4 | . . . 4 . . . . . . Garrison Access 1 | . . . . . . . 1 . . Terminal Hacks 30 | . 7 . 11 2 4 . 2 1 3 Record 4 | . . . . . 4 . . . . Part Schematic 2 | . 1 . 1 . . . . . . Robot Analysis 3 | . 2 . 1 . . . . . . Prototype ID Bank 5 | . 2 . 2 . . . 1 . . Open Door 1 | . . . . 1 . . . . . Branch Access Points 1 | . . . 1 . . . . . . Emergency Access Points 1 | . 1 . . . . . . . . Terminal Index 2 | . . . 1 . . . 1 . . Scanalyzer Index 1 | . . . 1 . . . . . . Alert Level 2 | . . . 1 . . . . . 1 Unreport Threat 3 | . . . 1 . . . . . 2 Locate Traps 1 | . 1 . . . . . . . . Dispatch Records 1 | . . . . 1 . . . . . Hauler Manifests 1 | . . . 1 . . . . . . Zone Layout 1 | . . . 1 . . . . . . Garrison Registry 1 | . . . . . . . . 1 . Fabricator Hacks . | . . . . . . . . . . Repair Station Hacks 12 | . 2 . 2 . . . 6 . 2 Scan Component 6 | . 1 . 1 . . . 3 . 1 Repair 6 | . 1 . 1 . . . 3 . 1 Recycling Unit Hacks 4 | . 2 . 1 . . . 1 . . Retrieve Components 4 | . 2 . 1 . . . 1 . . Scanalyzer 4 | . . . 4 . . . . . . Insert Component 2 | . . . 2 . . . . . . Analyze 2 | . . . 2 . . . . . . Garrison Access Hacks 1 | . . . . . . . 1 . . Unlock Access 1 | . . . . . . . 1 . . Unauthorized Hacks 26 | . 3 . 9 1 . . 9 . 4 Terminals 22 | . 1 . 8 1 . . 8 . 4 Botnet 7 | . . . 3 . . . 2 . 2 Operators 1 | . . . . . . . 1 . . Skim 12 | . . . 5 . . . 5 . 2 Search 2 | . 1 . . 1 . . . . . Fabricators . | . . . . . . . . . . Repair Stations . | . . . . . . . . . . Recycling Units 4 | . 2 . 1 . . . 1 . . Tunnel 4 | . 2 . 1 . . . 1 . . Scanalyzers . | . . . . . . . . . . Garrison Access . | . . . . . . . . . . Data Cores Recovered . | . . . . . . . . . . Used . | . . . . . . . . . . Hacking Detections 31 | . 8 . 12 . . 1 7 1 2 Full Trace Events 9 | . 4 . 2 . . . 2 1 . Feedback Events . | . . . . . . . . . . Feedback Blocked . | . . . . . . . . . . Robot Schematics Acquired . | . . . . . . . . . . Robots Built . | . . . . . . . . . . Authchips . | . . . . . . . . . . Time . | . . . . . . . . . . Total Robot Build Rating . | . . . . . . . . . . Part Schematics Acquired 4 | . 1 . 3 . . . . . . Parts Built . | . . . . . . . . . . Authchips . | . . . . . . . . . . Time . | . . . . . . . . . . Total Part Build Rating . | . . . . . . . . . . Parts Repaired 6 | . 1 . 1 . . . 3 . 1 Time 191 | . 26 . 32 . . . 95 . 38 Parts Recycled . | . . . . . . . . . . Recycled Matter . | . . . . . . . . . . Retrieved Matter . | . . . . . . . . . . Retrieved Components 37 | . 18 . 10 . . . 9 . . Parts Scanalyzed 2 | . . . 2 . . . . . . Part Schematics Acquired 2 | . . . 2 . . . . . . Parts Damaged . | . . . . . . . . . . Bothacking | -11 -10 -10 -9 -9 -9 -8 -8 -8 -8 ------------ Run | Yrd Mat Min Mat Min Exi Min Mat Gar Mat Used RIF Installer . | . . . . . . . . . . Robots Hacked 2 | . . . . . 2 . . . . Non-combat 1 | . . . . . 1 . . . . Combat 1 | . . . . . 1 . . . . Robot Hacks Applied 2 | . . . . . 2 . . . . parse_system 2 | . . . . . 2 . . . . Relay Couplers Released . | . . . . . . . . . . Fabnet Peak Effective % . | . . . . . . . . . . Robots Rewired . | . . . . . . . . . . Allies Hacked . | . . . . . . . . . . Hacks Repelled . | . . . . . . . . . . Allies | -11 -10 -10 -9 -9 -9 -8 -8 -8 -8 -------- Run | Yrd Mat Min Mat Min Exi Min Mat Gar Mat Total Allies 3 | . . . . 1 . . . 2 . Largest Group 2 | . . . . 1 1 1 . 2 2 Highest-Rated Group 45 | . . . . 31 31 31 . 45 45 Highest-Rated Ally 31 | . . . . 31 31 31 . 25 25 Total Orders . | . . . . . . . . . . Ally Attacks 27 | . . . . 4 . 8 . . 15 Total Damage 609 | . . . . 44 . 123 . . 442 Kills 8 | . . . . . . 1 . . 7 Allies Corrupted . | . . . . . . . . . . Allies Melted . | . . . . . . . . . . Intel | -11 -10 -10 -9 -9 -9 -8 -8 -8 -8 ------- Run | Yrd Mat Min Mat Min Exi Min Mat Gar Mat Robot Analysis Total 3 | . 2 . 1 . . . . . . Derelict Logs Recovered 3 | . . 2 . 1 . . . . . Drone Launches . | . . . . . . . . . . Drone Recoveries . | . . . . . . . . . . Exploration | -11 -10 -10 -9 -9 -9 -8 -8 -8 -8 ------------- Run | Yrd Mat Min Mat Min Exi Min Mat Gar Mat Turns Passed 17402 | 153 2025 799 3470 1424 1013 1139 3271 2757 1351 Spaces Moved 6282 | 69 791 308 1327 569 315 389 1086 987 441 Core 1 | 1 . . . . . . . . . Treads 5897 | 62 759 308 1327 569 315 107 1022 987 441 Legs 346 | . . . . . . 282 64 . . Wheels 38 | 6 32 . . . . . . . . Hover . | . . . . . . . . . . Flight . | . . . . . . . . . . Fastest Speed 50 | 50 100 240 160 160 320 193 193 232 240 Average Speed 235 | 153 213 240 209 241 320 266 237 242 245 Slowest Speed 560 | 160 240 320 240 320 320 480 320 246 560 Overloaded Moves . | . . . . . . . . . . Propulsion Burnouts . | . . . . . . . . . . Robots Hopped . | . . . . . . . . . . Cave-ins Triggered . | . . . . . . . . . . Exploration Rate (%) 71 | 4 95 64 93 99 77 85 61 86 47 Regions Visited 9 Branch Regions 4 Pre-discovered Areas 12 | . 2 . 4 1 1 . 4 . . Known Exits Taken 5 | . 1 1 1 . . 1 1 . . Unknown Exits Taken 3 | 1 . . . 1 1 . . . . Scrap Searched 3 | . . 2 . 1 . . . . . Spaces Dug 20 | . 1 . . 9 . 4 1 3 2 Terrain Destroyed 161 | . 1 . 26 51 . 5 29 14 35 Melee 1 | . . . . . . . . 1 . Projectile 45 | . 1 . . . . 1 7 8 28 AOE 115 | . . . 26 51 . 4 22 5 7 Terrain Rammed . | . . . . . . . . . . Walls Destroyed . | . . . . . . . . . . Machines Disabled . | . . . . . . . . . . Actions | -11 -10 -10 -9 -9 -9 -8 -8 -8 -8 --------- Run | Yrd Mat Min Mat Min Exi Min Mat Gar Mat Total 7757 | 91 958 337 1687 602 321 439 1550 1188 584 Wait 370 | . 51 8 74 . . 7 166 32 32 Move 6272 | 68 790 307 1326 568 314 388 1086 984 441 Hop . | . . . . . . . . . . Pick Up 121 | 5 13 3 22 9 2 2 36 18 11 Fast Attach 61 | 7 3 1 13 1 . 3 19 9 5 Attach 27 | . 1 . 4 2 . 1 9 10 . Detach 2 | . . . . . 1 . . 1 . Swap 101 | . 11 2 31 4 1 5 24 12 11 Drop 149 | . 5 . 43 5 1 4 58 17 16 Fire 601 | 11 84 16 174 10 . 29 129 81 67 Melee 5 | . . . . . 2 . 1 2 . Ram . | . . . . . . . . . . Kick . | . . . . . . . . . . Crush 5 | . . . . 3 . . 1 . 1 Escape Stasis 14 | . . . . . . . . 14 . Rewire . | . . . . . . . . . . Trap 21 | . . . . . . . 21 . . Miscellaneous 8 | . . . . . . . . 8 . Route ------- -11/Scrapyard -10/Materials (discovered 5 exits: *Mat x3 / *Min x2) -10/Mines (discovered 2 exits: *Mat / [*Sub]) -9/Materials (discovered 4 exits: *Mat x3 / *Min) -9/Mines (discovered 4 exits: *Mat x2 / *Exi / [*Zio]) -9/Exiles -8/Mines (discovered 2 exits: *Mat x2) -8/Materials (discovered 3 exits: *Fac x2 / Gar) -8/Garrison (discovered 4 exits: *Mat x4) -8/Materials (discovered 1 exit: *Fac) History --------- Turn | Location | Event 10 | -11/Scrapyard | Discovered new exit (range 15) 154 | -11/Scrapyard | Entered Materials 308 | -10/Materials | Build established: Mutant 472 | -10/Materials | Discovered new exit (range 7) 931 | -10/Materials | Discovered new exit (range 12) 1037 | -10/Materials | Discovered new exit (range 16) 1097 | -10/Materials | Identified exit to Materials 1128 | -10/Materials | Identified exit to Mines 1306 | -10/Materials | Discovered exit to Materials (range 16) 1832 | -10/Materials | Repaired Lgt. Treads 1841 | -10/Materials | Discovered exit to Materials (range 16) 1888 | -10/Materials | Core integrity fell below 50% 2179 | -10/Materials | Entered Mines 2780 | -10/Mines | Learned Materials emergency access door positions 2802 | -10/Mines | Excavation squad dispatched 2802 | -10/Mines | A large section of the Mines collapsed 2892 | -10/Mines | Discovered exit to Materials (range 8) 2911 | -10/Mines | Discovered new exit (range 10) 2978 | -10/Mines | Entered Materials 2978 | -9/Materials | Evolved 2 slots: Propulsion x1, Utility x1 3744 | -9/Materials | Discovered new exit (range 15) 4044 | -9/Materials | Build established: Scavenger-Mutant 4670 | -9/Materials | Repaired Cooling System 4893 | -9/Materials | Discovered new exit (range 17) 4936 | -9/Materials | Identified exit to Mines 4936 | -9/Materials | Identified exit to Materials 4992 | -9/Materials | Learned location of 1 exit from Storage 5007 | -9/Materials | Learned location of Mines (-9) 5019 | -9/Materials | Learned location of Storage (-7) 5042 | -9/Materials | Learned Materials emergency access door positions 5126 | -9/Materials | Build established: Mutant 6178 | -9/Materials | First assault squad dispatched 6365 | -9/Materials | Sterilization system engaged 6365 | -9/Materials | Non-combat units ordered to evacuate 6365 | -9/Materials | Destroyed 8 combat bots 6448 | -9/Materials | Entered Mines 6449 | -9/Mines | Met a Derelict testing a Signal Generator 6454 | -9/Mines | Found Signal Generator 6519 | -9/Mines | Destroyed 8 combat bots 6539 | -9/Mines | Assembled infested the area 6574 | -9/Mines | Discovered exit to Materials (range 3) 6679 | -9/Mines | Build established: Scavenger-Mutant 6733 | -9/Mines | Found a hidden stash of uninstalled traps 6738 | -9/Mines | Discovered exit to Materials (range 7) 6883 | -9/Mines | Met a Derelict shopkeep closing up shop 7205 | -9/Mines | Build established: Mutant 7478 | -9/Mines | A Derelict revealed a hidden shortcut to a safe place 7856 | -9/Mines | Discovered new exit (range 5) 7872 | -9/Mines | Entered Exiles 7872 | -9/Exiles | Accompanied by 1 ally 7961 | -9/Exiles | Met 8R-AWN 8007 | -9/Exiles | Met EX-HEX 8101 | -9/Exiles | Met EX-BIN 8149 | -9/Exiles | Met EX-DEC 8162 | -9/Exiles | Learned location of Zion (-7) 8291 | -9/Exiles | Visited The Gauntlet 8850 | -9/Exiles | Discovered new exit (range 11) 8885 | -9/Exiles | Entered Mines 8885 | -8/Mines | Accompanied by 1 ally 9169 | -8/Mines | Core integrity fell below 50% 9441 | -8/Mines | Discovered exit to Materials (range 9) 9600 | -8/Mines | Build established: Scavenger-Mutant 9947 | -8/Mines | Discovered exit to Materials (range 9) 10024 | -8/Mines | Entered Materials 10024 | -8/Materials | Evolved 2 slots: Propulsion x1, Utility x1 10668 | -8/Materials | Garrison activated, responded to threat 11596 | -8/Materials | Build established: Mutant 11758 | -8/Materials | Learned location of 1 exit from Extension 11781 | -8/Materials | Identified exit to Factory 11800 | -8/Materials | Learned location of 1 exit from Extension 11801 | -8/Materials | Learned Storage garrison access intel 11802 | -8/Materials | Learned 4 Lower Caves zone layouts 11814 | -8/Materials | Learned location of 1 exit from Extension 12222 | -8/Materials | Discovered exit to Factory (range 10) 12500 | -8/Materials | Garrison activated, responded to threat 12641 | -8/Materials | Build established: Scavenger-Mutant 12941 | -8/Materials | Repaired Arm. Treads 12980 | -8/Materials | Repaired Arm. Treads 13231 | -8/Materials | Repaired Hvy. Assault Cannon 13295 | -8/Materials | Identified exit to Garrison 13295 | -8/Materials | Entered Garrison 13369 | -8/Garrison | Triggered checkpoint 13443 | -8/Garrison | Triggered checkpoint 13482 | -8/Garrison | Destroyed 13 combat bots 13765 | -8/Garrison | Triggered checkpoint 13917 | -8/Garrison | Triggered checkpoint 13995 | -8/Garrison | Discovered new exit (range 11) 14131 | -8/Garrison | Triggered checkpoint 14315 | -8/Garrison | Triggered checkpoint 14367 | -8/Garrison | Triggered checkpoint 14377 | -8/Garrison | Core integrity fell below 50% 14445 | -8/Garrison | Discovered new exit (range 6) 14612 | -8/Garrison | Discovered new exit (range 9) 14629 | -8/Garrison | Discovered new exit (range 9) 14629 | -8/Garrison | Discovered new exit (range 91) 14629 | -8/Garrison | Discovered new exit (range 57) 14629 | -8/Garrison | Discovered new exit (range 21) 15095 | -8/Garrison | Triggered checkpoint 15456 | -8/Garrison | Rescued a captive Derelict 15466 | -8/Garrison | Rescued a captive Derelict 15493 | -8/Garrison | Attempted to access garrison exit controls, blocked by remote lockdown 15545 | -8/Garrison | Triggered checkpoint 15788 | -8/Garrison | Attempted to access garrison exit controls, blocked by remote lockdown 16052 | -8/Garrison | Entered Materials 16052 | -8/Materials | Accompanied by 2 allies 16107 | -8/Materials | Repaired Arm. Treads 16400 | -8/Materials | Core integrity fell below 20% 16429 | -8/Materials | Discovered exit to Factory (range 7) 16852 | -8/Materials | First assault squad dispatched 17403 | -8/Materials | Destroyed self via exploding Nuclear Reactor Last Messages --------------- 17372_ Acquired Lgt. Treads. 17376_ Acquired Flight Unit. 17376_ K-01 Serf collects debris. 17377_ Dropped Lgt. Treads. 17378_ Acquired Lgt. Treads. 17379_ K-01 Serf collects debris. 17396_ C-30 ARC bursts open, deploying its payload. 17396_ G-50 Soldier unfolds itself. 17396_ B-36 Bruiser unfolds itself. 17396_ G-47 Trooper unfolds itself. 17396_ M-28 Smith unfolds itself. 17396_ K-01 Serf collects debris. 17403_ B-36 Bruiser destroyed. 17403_ Nuclear Reactor explodes. 17403_ Destroyed Lgt. Armor Plating. 17403_ G-47 Trooper destroyed. 17403_ Terminal disabled. 17403_ M-28 Smith destroyed. 17403_ G-50 Soldier destroyed. Map ----- +----------------------------------------------------+ | | | | | | | | | | | | | | | | | | | | | | | | | | | | | | | | | ????????????????##########????????????????? | | ???????????????# / ?#??????????????? | | ???????????????#"" #??????????????? | | ???????????????#"" """ #??????????????? | | ???????????????#"T """ #??????????????? | | ???????????????#""%% """ #??????????????? | | ???????????????#""[=k " #??????????????? | | ??????????######! * %%% "#?????????????? | | ??????????# ## %##########????????????? | | ??????????# !@%% ????????? | | ??????????# = % %% ????????? | | ??????????# % =%/########### ????????? | | ??????????# * #??????????????????????? | | ??????###?# b%=#??????????????????????? | | ??????# ?# % #########??????????????? | | ??????# ?# * #! ""??????????????? | | ??????+ ## % # ""???????????????? | | ??????# """ # """ "" #????????????? | | ??????# """ + """ #????????????? | | ??????# """ # """ / #????????????? | | ??????# # """ ?????????????? | | ??????# # / ?????????????? | | ??????# """ # ??????????????? | | ??##### """ ############???????????? | | # # """ #?? #???????????? | | # [ # # #???????????? | | #= # + #???????????? | | # / # #???????????? | | # """# ############ """ """ #???????????? | | # """# #! #????""" """?????????????? | | # """# # """#?????"" ""??????????????? | | # + + ! """#????? ?????????????????? | | # """## # """#????????????????????????? | | # """## #! #????????????????????????? | +----------------------------------------------------+ Best States ------------- Heat Dissipation 80 Energy Generation 16 Energy Capacity 290 Matter Stores 300 Matter Capacity 300 Sight Range 16 Terrain Scan Density 10 Armor Coverage 450 Resistance: TH 10 Evasion (%) 40 Targeting Accuracy 6 Armor Integrity Analysis 30 Recoil Reduction 4 Item Schematics ----------------- Lgt. Armor Plating | -10/Materials | Hacked Imp. Treads | -9/Materials | Hacked Imp. Light Armor Plating | -9/Materials | Scanalyzed Plasma Cutter | -9/Materials | Scanalyzed Robot Schematics ------------------ None Fabricated ------------ Nothing Alien Tech Used ----------------- None Achievements -------------- None Challenges ------------ None Game ------ Seed AmuletSiegeTerrabomb Manual? 0 Play Time 01:31:12 Cumulative 208.8 hours Start 2024.08.03 @ 15:38:03 End 2024.08.03 @ 17:32:00 Sessions 1 Manual Loads 0 Difficulty Rogue Special Mode None Game No. 175 Rogue 170 Adventurer 5 Explorer 0 Win Type - Total 4 Types 2/0/2/0/0/0/0/0/0 Lore% 65 Gallery% 77 Achievement% 60 Wizard Run 0 Options --------- Layout 2 ASCII 0 Keyboard 0 Movement Mouse Keybinds 0 Fullscreen 2 Font 24/Smallcaps Map View 50x44 Zoom Use 0% Tactical HUD 1 Map Filters NONE Filters NONE Steam 1 RUN: c75743c0-fa38-475b-b3cd-213424d999e6